Workbook

Sheet Accueil
C5: Ce classeur sert à faire une étude de capabilité à partir d'un échantillon que l'on indique colonne D feuille données
C6: Le résultat avec le graphique se trouve feuille capabilité.
C8: données
C9: capabilité
C13: Télécharger XLSTORE pour afficher l'aide
C14: D'autres classeurs utilisant xlstore ici
C15: http://excel-store.fr

Sheet données
A1: numéro | B1: date | C1: heure | D1: rayon µm | F1: Indiquez les valeurs colonne D
A2: 1 | B2: 2003-08-29T08:26:30 | C2: 08:26:30 | D2: =RAND()+RAND()+RAND()+RAND()+RAND()-RAND()-RAND()-RAND()-RAND()-RAND()-RAND()-RAND() -> -0.1353803581
A3: 2 | B3: 2003-08-29T08:26:32 | C3: 08:26:32 | D3: =RAND()+RAND()+RAND()+RAND()+RAND()-RAND()-RAND()-RAND()-RAND()-RAND()-RAND()-RAND() -> -0.187380103
A4: 3 | B4: 2003-08-29T08:26:33 | C4: 08:26:33 | D4: -2.884693069
A5: 4 | B5: 2003-08-29T08:26:34 | C5: 08:26:34 | D5: -0.6706696696
A6: 5 | B6: 2003-08-29T08:26:36 | C6: 08:26:36 | D6: -1.877182759
A7: 6 | B7: 2003-08-29T08:26:37 | C7: 08:26:37 | D7: -0.37235612
A8: 7 | B8: 2003-08-29T08:26:38 | C8: 08:26:38 | D8: -0.903696745
A9: 8 | B9: 2003-08-29T08:26:39 | C9: 08:26:39 | D9: -0.005366002967
A10: 9 | B10: 2003-08-29T08:26:40 | C10: 08:26:40 | D10: -0.4412448014
A11: 10 | B11: 2003-08-29T08:26:42 | C11: 08:26:42 | D11: -0.8988433835
A12: 11 | B12: 2003-08-29T08:26:43 | C12: 08:26:43 | D12: -2.850342637
A13: 12 | B13: 2003-08-29T08:26:44 | C13: 08:26:44 | D13: -3.76856937
A14: 13 | B14: 2003-08-29T08:26:44 | C14: 08:26:44 | D14: -0.8268250464
A15: 14 | B15: 2003-08-29T08:26:45 | C15: 08:26:45 | D15: -1.241746017
A16: 15 | B16: 2003-08-29T08:26:46 | C16: 08:26:46 | D16: -1.77796231
A17: 16 | B17: 2003-08-29T08:26:47 | C17: 08:26:47 | D17: -0.7917623459
A18: 17 | B18: 2003-08-29T08:26:48 | C18: 08:26:48 | D18: -1.012067118
A19: 18 | B19: 2003-08-29T08:26:49 | C19: 08:26:49 | D19: -1.446987072
A20: 19 | B20: 2003-08-29T08:26:50 | C20: 08:26:50 | D20: -1.226250036
A21: 20 | B21: 2003-08-29T08:26:51 | C21: 08:26:51 | D21: -1.296194386
A22: 21 | B22: 2003-08-29T08:26:52 | C22: 08:26:52 | D22: -0.5531186448
A23: 22 | B23: 2003-08-29T08:26:56 | C23: 08:26:56 | D23: -1.409079308
A24: 23 | B24: 2003-08-29T08:26:58 | C24: 08:26:58 | D24: -1.949514539
A25: 24 | B25: 2003-08-29T08:26:59 | C25: 08:26:59 | D25: -2.526417226
A26: 25 | B26: 2003-08-29T08:27:00 | C26: 08:27:00 | D26: -2.288240777
A27: 26 | B27: 2003-08-29T08:27:01 | C27: 08:27:01 | D27: 0.02869462168
A28: 27 | B28: 2003-08-29T08:27:04 | C28: 08:27:04 | D28: -2.38784826
A29: 28 | B29: 2003-08-29T08:27:06 | C29: 08:27:06 | D29: -1.406014406
A30: 29 | B30: 2003-08-29T08:27:09 | C30: 08:27:09 | D30: -1.347655188
A31: 31 | B31: 2003-08-29T08:27:14 | C31: 08:27:14 | D31: 0.9038206105
A32: 32 | B32: 2003-08-29T08:27:15 | C32: 08:27:15 | D32: -0.7140682839
A33: 33 | B33: 2003-08-29T08:27:16 | C33: 08:27:16 | D33: -1.939041955
A34: 35 | B34: 2003-08-29T08:27:21 | C34: 08:27:21 | D34: -2.034913473
A35: 37 | B35: 2003-08-29T08:27:25 | C35: 08:27:25 | D35: 0.09555644914
A36: 38 | B36: 2003-08-29T08:27:27 | C36: 08:27:27 | D36: 0.2108042032
A37: 39 | B37: 2003-08-29T08:27:29 | C37: 08:27:29 | D37: -0.623430142
A38: 44 | B38: 2003-08-29T08:27:39 | C38: 08:27:39 | D38: 0.3899619182
A39: 46 | B39: 2003-08-29T08:27:43 | C39: 08:27:43 | D39: -1.689031089
A40: 48 | B40: 2003-08-29T08:27:48 | C40: 08:27:48 | D40: -3.160390004
A41: 50 | B41: 2003-08-29T08:27:53 | C41: 08:27:53 | D41: -1.611475613
A42: 51 | B42: 2003-08-29T08:27:53 | C42: 08:27:53 | D42: -1.79416953
A43: 53 | B43: 2003-08-29T08:27:58 | C43: 08:27:58 | D43: -1.529940892
A44: 54 | B44: 2003-08-29T08:27:59 | C44: 08:27:59 | D44: -0.1441212313
A45: 55 | B45: 2003-08-29T08:28:00 | C45: 08:28:00 | D45: -2.082653274
A46: 56 | B46: 2003-08-29T08:28:01 | C46: 08:28:01 | D46: -3.871527833
A47: 57 | B47: 2003-08-29T08:28:02 | C47: 08:28:02 | D47: -0.3696921291
A48: 59 | B48: 2003-08-29T08:28:07 | C48: 08:28:07 | D48: -0.683010542
A49: 60 | B49: 2003-08-29T08:28:08 | C49: 08:28:08 | D49: -0.3800298482
A50: 61 | B50: 2003-08-29T08:28:09 | C50: 08:28:09 | D50: -0.8507702718
A51: 62 | B51: 2003-08-29T08:28:10 | C51: 08:28:10 | D51: 0.1260611719

Sheet capabilité
A1: ="Etude de capabilité "&données!D1 -> Etude de capabilité rayon µm
A5: mesures | C5: tolérances | E5: Capabilité | G5: Limites du graphique
A6: min | B6: =MIN(données!D:D) -> -3.871527833 | C6: min | D6: -4 | E6: cpmin | F6: =MAX(0,(B9-D6)/3/B8) -> 0.877172341 | G6: mini | H6: -6
A7: max | B7: =MAX(données!D:D) -> 0.9038206105 | C7: max | D7: 4 | E7: cpmax | F7: =MAX((B9-D7)/-3/B8,0) -> 1.632741398 | G7: maxi | H7: 5
A8: écart type | B8: =STDEV(données!D:D) -> 1.062453512 | C8: étendue | D8: =D7-D6 -> 8 | E8: cp | F8: =(D7-D6)/6/B8 -> 1.254956869 | G8: pas | H8: =ROUND((H7-H6)/20,2) -> 0.55
A9: moyenne | B9: =AVERAGE(données!D:D) -> -1.204135497 | C9: centre | D9: =(D7+D6)/2 -> 0 | E9: cpk | F9: =MIN(F6:F7) -> 0.877172341 | G9: nombre | H9: =COUNT(données!D:D) -> 50
A11: normalité (K2 10%) : | B11: =IF(Calculs!G58<5,Calculs!B74,IF(Calculs!I59<0.1,"non","normale")) -> normale

Sheet aide
A1: Code aide xlstore | B1: a | C1: b | D1: c | E1: d | F1: e | G1: f
A2: Entête | B2: merci d'utiliser ce classeur, | C2: Lles données | D2: La normalité | E2: les valeurs à saisir | F2: le graphique | G2: Avertissement
A3: Icone
A4: Texte | B4: son but est de faire un calcul simple de capabilité en présentant la répartition des données dans des classes, ainsi que les limites de tolérances. cette répartition est comparée à une loi normale pour vérifier la normalité de la distribution réalisé par Sylvain NICOLAS: nicolas.sylvain1@libertysurf.fr http://sn1.chez-alice.fr | C4: Elles sont saisies dans la colonne D de l'onglet données, Le nom saisi en D1 sert comme titre des pages capabilité. Souvent de nos jours les mesures s'effectuent de manière automatiques et vous disposez peut-être de fichiers texte plein d'informations que vous voudriez utiliser pour des calculs de capabilité. Dans ce cas, sachez qu'il est possible de créer des macros permettant de remonter ces valeurs automatiquement pour avoir rapidement une étude de capabilité. Si cela vous intéresse, retenez mes coordonnées : http://sn1.chez-alice.fr/feedback/coor.html | D4: En effet les calculs de capabilités avec plus ou moins 3 écarts types ne sont valables que dans ce cas. Pour le test de normalité j'utilise un test du khi2 à 21 ou 9 ddl suivant le nombre de données. En effet les calculs de normalité par le test du K2 demandent au moins 5 individus par classe, soit au minimum ici 50 mesures. Pour des précisions concernant la vérification de la normalité : http://sn1.chez-alice.fr/calculs/normale/norma.html | E4: En plus des données il y a 4 valeurs à saisir : les tolérances mini et maxi pour le calcul de la capabilité les valeurs mini et maxi pour l'affichage du graphique. l'étendue choisie pour le graphique influence bien sûr le calcul de la normalité : si les classes sont très larges, une classe pourra contenir toutes les données, ce qui est aussi le cas pour une loi normale. Il faut donc prendre une étendue qui permette de représenter les données de manière raisonnable. | F4: Il contient 3 séries : les données réparties en classes, la courbe d'une loi normale de moyenne et d'écart type étant le même que ceux des données, des barres indiquant la moyenne des données et l'intervalle de tolérance. Il s'agit d'un graphique en barre donc l'effet de seuil provoque quelques aberrations mais on peut corriger l'apparence en jouant sur l'intervalle d'affichage. les données sont réparties 20 classes, la série ne représente pas la classe de moins l'infini à la première borne pour des raisons d'esthétique et de compréhension (cela ferait une bosse sur la gauche) la courbe représentant la loi normale est un ajustement entre des points calculés, elle peut donc être légèrement déformée, mais le point au milieu de la classe représente bien la valeur théorique. Les barres verticales sont créées au milieu de la classe correspondante. Les deux extrêmes indiquent les tolérances mini et maxi celle du milieu indique la moyenne de l'échantillon | G4: Bien que je fasse attention, une erreur est vite arrivée, alors si vous en trouvez une n'hésitez pas à me la signaler. Réalisé par Sylvain NICOLAS: nicolas.sylvain1@libertysurf.fr
A5: Labels1 | G5: mon site
A6: Labels2
A7: Labels3
A8: Labels4
A9: Labels5
A10: Type 1 | G10: lien aide
A11: Type 2
A12: Type 3
A13: Type 4
A14: Type 5
A15: Code Aide liée 1 | G15: http://sn1.chez-alice.fr
A16: Code Aide liée 2
A17: Code Aide liée 3
A18: Code Aide liée 4
A19: Code Aide liée 5
A20: Affichage modal | B20: Non | C20: Non | D20: Non | E20: Non | F20: Non | G20: Non
A21: Autorisation croix rouge pour fermer | B21: Oui | C21: Oui | D21: Oui | E21: Oui | F21: Oui | G21: Oui
A22: Bouton 1 | B22: Premier | C22: Premier | D22: Premier | E22: Premier | F22: Premier | G22: Premier
A23: Bouton 2 | B23: précédent | C23: précédent | D23: précédent | E23: précédent | F23: précédent | G23: précédent
A24: Bouton 3 | B24: Fermer | C24: Fermer | D24: Fermer | E24: Fermer | F24: Fermer | G24: Fermer
A25: Bouton 4 | B25: Suivant | C25: Suivant | D25: Suivant | E25: Suivant | F25: Suivant
A26: Bouton 5 | B26: Dernier | C26: Dernier | D26: Dernier | E26: Dernier | F26: Dernier
A27: Zone saisie texte | B27: Non | C27: Non | D27: Non | E27: Non | F27: Non | G27: Non
A28: Afficher l'image | B28: Non | C28: Oui | D28: Non | E28: Oui | F28: Oui | G28: Non
A29: Image ou adresse image | C29: données!$A$1:$F$15 | E29: capabilité!$C$5:$h$7 | F29: capabilité!$A$13:$H$32
A30: Mots clés
A31: Bouton | B31: Fermer
A32: Choix 1 | B32: FALSE
A33: Choix 2 | B33: FALSE
A34: Choix 3 | B34: FALSE
A35: Choix 4 | B35: FALSE
A36: Choix 5 | B36: FALSE
A37: Colonne | B37: 7
A38: Répertoire aide
A40: Modèle fichier html
A41: Texte entré

Sheet Calculs
D33: limites intervalles | E33: loi normale cumulée | F33: loi normale intervalle | H33: Barres verticales
A34: intervalle | C34: contenu intervalle | D34: 0 | G34: courbe jaune | H34: =MAX($C$35:$C$57) -> 11
A35: ="< "&D35 -> < -6 | B35: =COUNTIF(données!D:D,"<"&D35) -> 0 | C35: =B35-B34 -> 0 | D35: =capabilité!H6 -> -6 | E35: =NORMDIST(D35,moy,sigma,1) -> 3.181526305e-06 | F35: =E35-E34 -> 3.181526305e-06 | G35: =F35*nb -> 0.0001590763152 | H35: =IF(AND(D35>mini,D34<=mini),$H$34,IF(AND(D35>maxi,D34<=maxi),$H$34,IF(AND(D35>moy,D34<=moy),$H$34,""))) ->  | I35: =IF(G35=0,0,(G35-C35)^2/G35) -> 0.0001590763152
A36: ="["&D35&"-"&D36&"[" -> [-6--5,45[ | B36: =COUNTIF(données!D:D,"<"&D36) -> 0 | C36: 0 | D36: =ROUND(D35+capabilité!$H$8,2) -> -5.45 | E36: 3.217245588e-05 | F36: 2.899092957e-05 | G36: 0.001449546479 | I36: 0.001449546479
A37: [-5,45--4,9[ | B37: =COUNTIF(données!D:D,"<"&D37) -> 0 | C37: 0 | D37: =ROUND(D36+capabilité!$H$8,2) -> -4.9 | E37: 0.0002520080291 | F37: 0.0002198355732 | G37: 0.01099177866 | I37: 0.01099177866
A38: [-4,9--4,35[ | B38: =COUNTIF(données!D:D,"<"&D38) -> 0 | C38: 0 | D38: =ROUND(D37+capabilité!$H$8,2) -> -4.35 | E38: 0.001533492472 | F38: 0.001281484443 | G38: 0.06407422213 | I38: 0.06407422213
A39: [-4,35--3,8[ | B39: =COUNTIF(données!D:D,"<"&D39) -> 1 | C39: 1 | D39: =ROUND(D38+capabilité!$H$8,2) -> -3.8 | E39: 0.007277351402 | F39: 0.005743858931 | G39: 0.2871929465 | H39: 11 | I39: 1.769172612
A40: [-3,8--3,25[ | B40: =COUNTIF(données!D:D,"<"&D40) -> 2 | C40: 1 | D40: =ROUND(D39+capabilité!$H$8,2) -> -3.25 | E40: 0.02707693294 | F40: 0.01979958154 | G40: 0.9899790768 | I40: 0.0001014353772
A41: [-3,25--2,7[ | B41: =COUNTIF(données!D:D,"<"&D41) -> 5 | C41: 3 | D41: =ROUND(D40+capabilité!$H$8,2) -> -2.7 | E41: 0.07957529592 | F41: 0.05249836298 | G41: 2.624918149 | I41: 0.05359648827
A42: [-2,7--2,15[ | B42: =COUNTIF(données!D:D,"<"&D42) -> 8 | C42: 3 | D42: =ROUND(D41+capabilité!$H$8,2) -> -2.15 | E42: 0.1866619749 | F42: 0.1070866789 | G42: 5.354333947 | I42: 1.035215284
A43: [-2,15--1,6[ | B43: =COUNTIF(données!D:D,"<"&D43) -> 17 | C43: 9 | D43: =ROUND(D42+capabilité!$H$8,2) -> -1.6 | E43: 0.3547250746 | F43: 0.1680630997 | G43: 8.403154985 | I43: 0.04239169368
A44: [-1,6--1,05[ | B44: =COUNTIF(données!D:D,"<"&D44) -> 25 | C44: 8 | D44: =ROUND(D43+capabilité!$H$8,2) -> -1.05 | E44: 0.5576741916 | F44: 0.202949117 | G44: 10.14745585 | H44: 11 | I44: 0.4544554519
A45: [-1,05--0,5[ | B45: =COUNTIF(données!D:D,"<"&D45) -> 36 | C45: 11 | D45: =ROUND(D44+capabilité!$H$8,2) -> -0.5 | E45: 0.7462529808 | F45: 0.1885787892 | G45: 9.42893946 | I45: 0.2617718813
A46: [-0,5-0,05[ | B46: =COUNTIF(données!D:D,"<"&D46) -> 45 | C46: 9 | D46: =ROUND(D45+capabilité!$H$8,2) -> 0.05 | E46: 0.8810822947 | F46: 0.1348293139 | G46: 6.741465695 | I46: 0.7566569997
A47: [0,05-0,6[ | B47: =COUNTIF(données!D:D,"<"&D47) -> 49 | C47: 4 | D47: =ROUND(D46+capabilité!$H$8,2) -> 0.6 | E47: 0.9552540621 | F47: 0.07417176745 | G47: 3.708588373 | I47: 0.02289839909
A48: [0,6-1,15[ | B48: =COUNTIF(données!D:D,"<"&D48) -> 50 | C48: 1 | D48: =ROUND(D47+capabilité!$H$8,2) -> 1.15 | E48: 0.9866458188 | F48: 0.0313917567 | G48: 1.569587835 | I48: 0.2066977677
A49: [1,15-1,7[ | B49: =COUNTIF(données!D:D,"<"&D49) -> 50 | C49: 0 | D49: =ROUND(D48+capabilité!$H$8,2) -> 1.7 | E49: 0.9968660168 | F49: 0.01022019794 | G49: 0.5110098972 | I49: 0.5110098972
A50: [1,7-2,25[ | B50: =COUNTIF(données!D:D,"<"&D50) -> 50 | C50: 0 | D50: =ROUND(D49+capabilité!$H$8,2) -> 2.25 | E50: 0.9994251894 | F50: 0.002559172589 | G50: 0.1279586295 | I50: 0.1279586295
A51: [2,25-2,8[ | B51: =COUNTIF(données!D:D,"<"&D51) -> 50 | C51: 0 | D51: =ROUND(D50+capabilité!$H$8,2) -> 2.8 | E51: 0.9999179707 | F51: 0.0004927813378 | G51: 0.02463906689 | I51: 0.02463906689
A52: [2,8-3,35[ | B52: =COUNTIF(données!D:D,"<"&D52) -> 50 | C52: 0 | D52: =ROUND(D51+capabilité!$H$8,2) -> 3.35 | E52: 0.9999909217 | F52: 7.295102152e-05 | G52: 0.003647551076 | I52: 0.003647551076
A53: [3,35-3,9[ | B53: =COUNTIF(données!D:D,"<"&D53) -> 50 | C53: 0 | D53: =ROUND(D52+capabilité!$H$8,2) -> 3.9 | E53: 0.9999992228 | F53: 8.301021698e-06 | G53: 0.0004150510849 | I53: 0.0004150510849
A54: [3,9-4,45[ | B54: =COUNTIF(données!D:D,"<"&D54) -> 50 | C54: 0 | D54: =ROUND(D53+capabilité!$H$8,2) -> 4.45 | E54: 0.9999999486 | F54: 7.258555929e-07 | G54: 3.629277964e-05 | H54: 11 | I54: 3.629277964e-05
A55: [4,45-5[ | B55: =COUNTIF(données!D:D,"<"&D55) -> 50 | C55: 0 | D55: =ROUND(D54+capabilité!$H$8,2) -> 5 | E55: 0.9999999974 | F55: 4.876182014e-08 | G55: 2.438091007e-06 | I55: 2.438091007e-06
A56: [5-5,55[ | B56: =COUNTIF(données!D:D,"<"&D56) -> 50 | C56: 0 | D56: =ROUND(D55+capabilité!$H$8,2) -> 5.55 | E56: 0.9999999999 | F56: 2.516008402e-09 | G56: 1.258004201e-07 | I56: 1.258004201e-07
A57: [5,55-6,1[ | B57: =COUNTIF(données!D:D,"<"&D57) -> 50 | C57: 0 | D57: =ROUND(D56+capabilité!$H$8,2) -> 6.1 | E57: 1 | F57: 9.96870364e-11 | G57: 4.98435182e-09 | I57: 4.98435182e-09
G58: =AVERAGE(G35:G57) -> 2.173913043 | I58: =SUM(I35:I57) -> 5.347341694
A59: vérification de la normalité pour 50 à 100 valeurs | I59: =CHIDIST(I58,21) -> 0.9997709299
D60: =ROUND((capabilité!B7-capabilité!B6*1.1)/10,2) -> 0.52
A61: intervalle | C61: contenu intervalle | D61: 0 | H61: =MAX($C$62:$C$72) -> 9
A62: ="["&D61&"-"&D62&"[" -> [0--3,87[ | B62: =COUNTIF(données!D:D,"<"&D62) -> 1 | C62: =B62-B61 -> 1 | D62: =ROUND(capabilité!B6,2) -> -3.87 | E62: =NORMDIST(D62,moy,sigma,1) -> 0.006050954537 | F62: =E62-E61 -> 0.006050954537 | G62: =F62*nb -> 0.3025477268 | H62: =IF(AND(D62>capabilité!$D$6,D61<=capabilité!$D$6),$H$34,IF(AND(D62>capabilité!$D$7,D61<=capabilité!$D$7),$H$34,IF(AND(D62>capabilité!$B$9,D61<=capabilité!$B$9),$H$34,""))) ->  | I62: =IF(G62=0,0,(G62-C62)^2/G62) -> 1.607811364
A63: [-3,87--3,35[ | B63: =COUNTIF(données!D:D,"<"&D63) -> 2 | C63: 1 | D63: =ROUND(D62+$D$60,2) -> -3.35 | E63: 0.02170593171 | F63: 0.01565497718 | G63: 0.7827488589 | H63: =IF(AND(D63>capabilité!$D$6,D62<=capabilité!$D$6),$H$34,IF(AND(D63>capabilité!$D$7,D62<=capabilité!$D$7),$H$34,IF(AND(D63>capabilité!$B$9,D62<=capabilité!$B$9),$H$34,""))) ->  | I63: 0.0602978309
A64: [-3,35--2,83[ | B64: =COUNTIF(données!D:D,"<"&D64) -> 5 | C64: 3 | D64: -2.83 | E64: 0.06297218801 | F64: 0.04126625629 | G64: 2.063312815 | H64: =IF(AND(D64>capabilité!$D$6,D63<=capabilité!$D$6),$H$34,IF(AND(D64>capabilité!$D$7,D63<=capabilité!$D$7),$H$34,IF(AND(D64>capabilité!$B$9,D63<=capabilité!$B$9),$H$34,""))) ->  | I64: 0.4252301817
A65: [-2,83--2,31[ | B65: =COUNTIF(données!D:D,"<"&D65) -> 7 | C65: 2 | D65: -2.31 | E65: 0.148970452 | F65: 0.08599826396 | G65: 4.299913198 | H65: =IF(AND(D65>capabilité!$D$6,D64<=capabilité!$D$6),$H$34,IF(AND(D65>capabilité!$D$7,D64<=capabilité!$D$7),$H$34,IF(AND(D65>capabilité!$B$9,D64<=capabilité!$B$9),$H$34,""))) ->  | I65: 1.230164535
A66: [-2,31--1,79[ | B66: =COUNTIF(données!D:D,"<"&D66) -> 14 | C66: 7 | D66: -1.79 | E66: 0.2906708366 | F66: 0.1417003846 | G66: 7.085019231 | H66: =IF(AND(D66>capabilité!$D$6,D65<=capabilité!$D$6),$H$34,IF(AND(D66>capabilité!$D$7,D65<=capabilité!$D$7),$H$34,IF(AND(D66>capabilité!$B$9,D65<=capabilité!$B$9),$H$34,""))) ->  | I66: 0.001020218776
A67: [-1,79--1,27[ | B67: =COUNTIF(données!D:D,"<"&D67) -> 23 | C67: 9 | D67: -1.27 | E67: 0.4752842697 | F67: 0.1846134331 | G67: 9.230671655 | H67: =IF(AND(D67>capabilité!$D$6,D66<=capabilité!$D$6),$H$34,IF(AND(D67>capabilité!$D$7,D66<=capabilité!$D$7),$H$34,IF(AND(D67>capabilité!$B$9,D66<=capabilité!$B$9),$H$34,""))) ->  | I67: 0.005764413964
A68: [-1,27--0,75[ | B68: =COUNTIF(données!D:D,"<"&D68) -> 31 | C68: 8 | D68: -0.75 | E68: 0.6654706869 | F68: 0.1901864172 | G68: 9.50932086 | H68: =IF(AND(D68>capabilité!$D$6,D67<=capabilité!$D$6),$H$34,IF(AND(D68>capabilité!$D$7,D67<=capabilité!$D$7),$H$34,IF(AND(D68>capabilité!$B$9,D67<=capabilité!$B$9),$H$34,""))) -> 11 | I68: 0.2395596376
A69: [-0,75--0,23[ | B69: =COUNTIF(données!D:D,"<"&D69) -> 40 | C69: 9 | D69: -0.23 | E69: 0.8203955406 | F69: 0.1549248537 | G69: 7.746242687 | H69: =IF(AND(D69>capabilité!$D$6,D68<=capabilité!$D$6),$H$34,IF(AND(D69>capabilité!$D$7,D68<=capabilité!$D$7),$H$34,IF(AND(D69>capabilité!$B$9,D68<=capabilité!$B$9),$H$34,""))) ->  | I69: 0.2029251423
A70: [-0,23-0,29[ | B70: =COUNTIF(données!D:D,"<"&D70) -> 48 | C70: 8 | D70: 0.29 | E70: 0.9201834649 | F70: 0.09978792422 | G70: 4.989396211 | H70: =IF(AND(D70>capabilité!$D$6,D69<=capabilité!$D$6),$H$34,IF(AND(D70>capabilité!$D$7,D69<=capabilité!$D$7),$H$34,IF(AND(D70>capabilité!$B$9,D69<=capabilité!$B$9),$H$34,""))) ->  | I70: 1.816599603
A71: [0,29-0,81[ | B71: =COUNTIF(données!D:D,"<"&D71) -> 49 | C71: 1 | D71: 0.81 | E71: 0.9710027756 | F71: 0.05081931078 | G71: 2.540965539 | H71: =IF(AND(D71>capabilité!$D$6,D70<=capabilité!$D$6),$H$34,IF(AND(D71>capabilité!$D$7,D70<=capabilité!$D$7),$H$34,IF(AND(D71>capabilité!$B$9,D70<=capabilité!$B$9),$H$34,""))) ->  | I71: 0.9345167242
A72: [0,81-1,33[ | B72: =COUNTIF(données!D:D,"<"&D72) -> 50 | C72: 1 | D72: 1.33 | E72: 0.9914644558 | F72: 0.02046168011 | G72: 1.023084006 | H72: =IF(AND(D72>capabilité!$D$6,D71<=capabilité!$D$6),$H$34,IF(AND(D72>capabilité!$D$7,D71<=capabilité!$D$7),$H$34,IF(AND(D72>capabilité!$B$9,D71<=capabilité!$B$9),$H$34,""))) ->  | I72: 0.0005208480578
G73: =AVERAGE(G62:G72)*1.2 -> 5.40798794 | I73: =SUM(I62:I72) -> 6.524410499
A74: normalité (K2 10%) : | B74: =IF(capabilité!H9<50,"pas assez de données",IF(Calculs!I74<0.1,"non","normale")) -> normale | I74: =CHIDIST(I73,9) -> 0.6864999674
